Cogmind - Beta 10.2 @@@ ROGUE MODE // 2022.02.02 @ 18:48:58 Player: magnificent.frigatebird Result: Destroyed by P-60 Hacker with Shock Rifle Performance ------------- Evolutions (3) 1500 Regions Visited (6) 1200 Robots Destroyed (27) 135 Value Destroyed (743) 743 Prototype IDs (3) 60 Alien Tech Used (0) 0 Bonus (300) 300 TOTAL SCORE: 3938 Bonus ------- Aligned with FarCom 300 Cogmind --------- Core Integrity 0/700 Matter 150/300 Energy 100/100 System Corruption 9% Temperature Cool (0) Movement Core (100) Ox1 Location -7/Factory Parts ------- > --- POWER (2) -------- (None) > --- PROPULSION (4) --- (None) > --- UTILITY (3) ------ Small Storage Unit > --- WEAPON (4) ------- (None) > --- INVENTORY (6) ---- Light Treads Particle Gun Assault Rifle Light Assault Rifle Flak Gun Katana Peak State ------------ > --- POWER ------------ Light Nuclear Core Improved Deuterium Engine > --- PROPULSION ------- Aluminum Leg Carbon-fiber Leg Carbon-fiber Leg Aerolev Unit > --- UTILITY ---------- Small Storage Unit Long-range Terrain Scanner Layered Light Armor Plating > --- WEAPON ----------- Beam Rifle Heavy Particle Cannon Plasma Cannon Rocket Launcher > --- INVENTORY -------- Light Treads Particle Gun Assault Rifle Light Assault Rifle Flak Gun Katana [Rating: 39] Favorites ----------- Power Light Ion Engine Engine Light Ion Engine Power Core Light Nuclear Core Propulsion Aluminum Leg Leg Aluminum Leg Wheel Wheel Hover Unit Aerolev Unit Flight Unit Flight Unit Utility Small Storage Unit Device Improved Terrain Scanner Storage Small Storage Unit Processor Seismic Analyzer Protection Hardened Medium Armor Plating Weapon Light Assault Rifle Energy Gun Precision Beam Rifle Energy Cannon Heavy Particle Cannon Ballistic Gun Light Assault Rifle Launcher Grenade Launcher Build | -11 -10 -10 -10 -9 -8 -7 ------- Run | Scr Mat Min Exi Min Mat Fac Slots Evolved 6 | . . . . . 4 2 Power 1 | . . . . . . 1 Propulsion 2 | . . . . . 2 . Utility 1 | . . . . . 1 . Weapon 2 | . . . . . 1 1 Parts Attached 57 | 6 3 3 3 12 18 12 Power 6 | 1 . 1 . 1 1 2 Engine 5 | 1 . 1 . 1 1 1 Core 1 | . . . . . . 1 Reactor . | . . . . . . . Propulsion 17 | 2 . . . 6 6 3 Treads . | . . . . . . . Leg 9 | 2 . . . 3 2 2 Wheel 3 | . . . . . 2 1 Hover 3 | . . . . 1 2 . Flight 2 | . . . . 2 . . Utility 13 | . 2 . . 3 4 4 Device 6 | . 1 . . 2 2 1 Storage 2 | . 1 . . . . 1 Processor 1 | . . . . 1 . . Hackware . | . . . . . . . Protection 4 | . . . . . 2 2 Artifact . | . . . . . . . Weapon 21 | 3 1 2 3 2 7 3 Energy Gun 7 | 1 . . 1 . 5 . Energy Cannon 2 | . . . . . . 2 Ballistic Gun 8 | 2 . 1 2 1 2 . Ballistic Cannon . | . . . . . . . Launcher 4 | . 1 1 . 1 . 1 Special Weapon . | . . . . . . . Impact Weapon . | . . . . . . . Slashing Weapon . | . . . . . . . Piercing Weapon . | . . . . . . . Special Melee Weapon . | . . . . . . . Unidentified Prototypes 3 | . . . 1 . 2 . Parts Lost 25 | . . 1 . . 12 12 Power 5 | . . 1 . . 2 2 Propulsion 6 | . . . . . 2 4 Utility 3 | . . . . . 1 2 Weapon 11 | . . . . . 7 4 Highest Loss Streak 12 | . . 1 . . 9 12 Average Slot Usage (%) 87 | . 85 100 93 94 78 87 Engine 8 | . 14 14 14 14 3 5 Leg 21 | . 28 28 28 26 16 17 Wheel 3 | . . . . . 9 . Hover 3 | . . . . . . 10 Device 7 | . 7 14 9 9 11 . Storage 11 | . 6 14 14 14 9 11 Protection 2 | . . . . . 2 7 Energy Gun 11 | . . . 4 12 15 15 Energy Cannon 1 | . . . . . . 5 Ballistic Gun 8 | . 20 16 13 14 6 . Launcher 5 | . 7 11 9 . 3 5 Naked Turns . | . . . . . . . Heaviest Build 51 | 5 12 12 12 11 21 51 Greatest Support 40 | 20 20 20 20 20 30 40 Greatest Overweight (x) 9 | 1 . . . 1 2 9 Average Overweight (x) . | . . . . . . . Largest Inventory Capacity 6 | 4 6 6 6 6 6 6 Average Capacity 5 | 4 4 6 6 6 6 6 Most Carried 6 | 4 4 6 6 6 6 6 Average Carried 5 | 2 3 4 5 5 5 5 Final Capacity 6 | 4 6 6 6 6 6 6 Final Carried 6 | 4 4 5 6 6 6 6 Class Distribution -------------------- 42% | Skirmisher 36% | Mutant 18% | Scavenger-Skirmisher Dominant Class ---------------- Mutant | -10/Materials Mutant | -10/Mines Mutant | -10/Exiles Skirmisher | -9/Mines Skirmisher | -8/Materials Scavenger-Skirmisher | -7/Factory Resources | -11 -10 -10 -10 -9 -8 -7 ----------- Run | Scr Mat Min Exi Min Mat Fac Matter Collected 937 | 263 53 70 63 61 327 100 Remotely . | . . . . . . . Salvage Created 990 | 124 . 46 . 41 412 367 Parts 62 | 4 . 5 . 4 34 15 Haulers Intercepted 1 | . . . . . 1 . Recyclers Shooed 2 | 1 . . . . . 1 Parts Field Recycled . | . . . . . . . Retrieved Matter . | . . . . . . . Parts Self-Destructed . | . . . . . . . Prevented . | . . . . . . . Kills | -11 -10 -10 -10 -9 -8 -7 ------- Run | Scr Mat Min Exi Min Mat Fac Combat Hostiles Destroyed 23 | . . 3 . 3 10 7 Guns 18 | . . 3 . 3 7 5 Cannons 1 | . . . . . . 1 AOE 4 | . . . . . 3 1 Classes Destroyed 8 | 2 . 1 . . 4 1 Builder 1 | . . . . . 1 . Tunneler 1 | 1 . . . . . . Hauler 1 | . . . . . 1 . Recycler 1 | 1 . . . . . . Swarmer 10 | . . 3 . 3 4 . Grunt 5 | . . . . . . 5 Sentry 7 | . . . . . 5 2 Hunter 1 | . . . . . 1 . Best Kill Streak 4 | 2 . 2 . 3 4 2 Combat Bots Only 4 | . . 2 . 3 4 2 Max Kills in Single Turn 2 | 1 . 1 . 1 2 1 Gunslinging . | . . . . . . . Exploded 2 | . . . . . 2 1 Melee . | . . . . . . . Uniques/NPCs Destroyed . | . . . . . . . Combat | -11 -10 -10 -10 -9 -8 -7 -------- Run | Scr Mat Min Exi Min Mat Fac Damage Taken 3222 | . . 292 . 138 954 1838 Core 966 | . . 43 . 37 179 707 Absorbed by Shields . | . . . . . . . Core Remaining (%) 78 | 100 . . . 68 67 . Volleys Fired 109 | 10 3 33 . 9 37 17 Largest 3 | 2 2 2 . 2 3 3 Hottest 211 | 40 40 40 . 60 183 211 Shots Fired 216 | 20 6 44 . 18 79 49 Gun 197 | 20 6 44 . 18 74 35 Cannon 11 | . . . . . . 11 Launcher 8 | . . . . . 5 3 Special . | . . . . . . . Kinetic 113 | 20 6 44 . 9 34 . Thermal 95 | . . . . 9 40 46 Explosive 8 | . . . . . 5 3 Electromagnetic . | . . . . . . . Robot Hit Streak 21 | 3 2 5 . 5 20 21 Robot Miss Streak 8 | 2 1 4 . 4 8 4 Penetration Max . | . . . . . . . Secondary Targets 2 | . . . . 2 . . Max Gunslinging Chain 1 | . . . . 1 . . Shots Hit Robots 123 | 11 3 27 . 9 43 30 Core Hits 63 | 5 1 6 . 4 26 21 Critical Hits . | . . . . . . . Critical Kills . | . . . . . . . Critical Parts Destroyed . | . . . . . . . Melee Attacks . | . . . . . . . Impact . | . . . . . . . Slashing . | . . . . . . . Piercing . | . . . . . . . Sneak Attacks . | . . . . . . . Combat Hostiles . | . . . . . . . Follow-up Attacks . | . . . . . . . Damage Inflicted 2027 | 104 8 199 . 77 825 814 Guns 1291 | 104 8 199 . 77 582 321 Cannons 256 | . . . . . . 256 Explosions 479 | . . . . . 243 236 Melee . | . . . . . . . Ramming 1 | . . . . . . 1 Kinetic 426 | 104 8 199 . 25 90 . Thermal 1121 | . . . . 52 492 577 Explosive 479 | . . . . . 243 236 Electromagnetic . | . . . . . . . Impact . | . . . . . . . Slashing . | . . . . . . . Piercing . | . . . . . . . Highest Corruption 9 | . . . . . 3 9 Average Corruption 2 | . . . . . 2 1 Corruption Purged . | . . . . . . . Effects 7 | . . . . . 2 5 Message Errors 1 | . . . . . . 1 Matter Fused 1 | . . . . . . 1 Heat Flow Errors 1 | . . . . . 1 . Energy Discharges 2 | . . . . . . 2 Data Loss (minor) 2 | . . . . . 1 1 Overload Shots . | . . . . . . . Overflow Damage 7 | . . . . . . 7 Projectiles . | . . . . . . . Explosions 7 | . . . . . . 7 Melee . | . . . . . . . Knockbacks . | . . . . . . . Impact . | . . . . . . . Kinetic . | . . . . . . . Secondary . | . . . . . . . Self-Inflicted Damage 70 | . . . . . 23 47 Shots 2 | . . . . . 1 1 Rammed 4 | . . . . . . 4 Targets Rammed 4 | . . . . . . 4 Kicked . | . . . . . . . Crushed . | . . . . . . . Highest Temperature 896 | . . . . 40 266 896 Average Temperature 207 | . . . . 18 78 310 Received Heat Transfer 723 | . . . . . 126 597 Effects 38 | . . . . . . 38 Shutdowns 10 | . . . . . . 10 Energy Bleed 2 | . . . . . . 2 Matter Decay 4 | . . . . . . 4 Short Circuit 3 | . . . . . . 3 Damage (minor) 3 | . . . . . . 3 Damage (major) 12 | . . . . . . 12 Damage (core) 4 | . . . . . . 4 Siege Activations . | . . . . . . . Robots Corrupted . | . . . . . . . Combat Hostiles . | . . . . . . . Parts Fried . | . . . . . . . Impact Corruptions . | . . . . . . . Robots Melted . | . . . . . . . Combat Hostiles . | . . . . . . . Parts Melted 7 | . . . . . 4 3 Heat Transferred 2397 | . . . . 125 1073 1199 Parts Sabotaged . | . . . . . . . Parts Stolen . | . . . . . . . Parts Stripped . | . . . . . . . Power Chain Reactions . | . . . . . . . Missiles Intercepted . | . . . . . . . Alert | -11 -10 -10 -10 -9 -8 -7 ------- Run | Scr Mat Min Exi Min Mat Fac Peak Influence 226 | 10 6 61 . 85 226 169 Initial 59 | . 6 1 . . 33 59 Average 67 | 4 6 25 . 15 100 79 Maximum Alert Level 1 | . . . . . 1 . Low Security (%) 98 | 100 100 100 . 100 95 100 Level 1 1 | . . . . . 4 . Level 2 . | . . . . . . . Level 3 . | . . . . . . . Level 4 . | . . . . . . . Level 5 . | . . . . . . . High Security . | . . . . . . . Max Security . | . . . . . . . Squads Dispatched 5 | . 1 . . . 1 3 Investigation . | . . . . . . . Extermination 1 | . . . . . . 1 Reinforcement 4 | . 1 . . . 1 2 Assault . | . . . . . . . Garrison . | . . . . . . . Intercept . | . . . . . . . Construction Impeded 2 | . . . . . 1 1 Haulers Reinforced . | . . . . . . . Stealth | -11 -10 -10 -10 -9 -8 -7 --------- Run | Scr Mat Min Exi Min Mat Fac Distress Signals 1 | . . . . . . 1 Communications Jammed . | . . . . . . . Distress Signals . | . . . . . . . Times Spotted 36 | . 1 3 . 3 15 14 Peak Tracking Total 7 | . . 3 . 3 4 7 Tactical Retreats 1 | . . . . . 1 . Traps | -11 -10 -10 -10 -9 -8 -7 ------- Run | Scr Mat Min Exi Min Mat Fac Traps Triggered 4 | . . . . . 2 2 Indirectly . | . . . . . . . Trap Hack Attempts . | . . . . . . . Triggered . | . . . . . . . Disarmed . | . . . . . . . Reprogrammed . | . . . . . . . Reused . | . . . . . . . Traps Extracted . | . . . . . . . Installed . | . . . . . . . Triggered . | . . . . . . . Machines | -11 -10 -10 -10 -9 -8 -7 ---------- Run | Scr Mat Min Exi Min Mat Fac Machines Disabled . | . . . . . . . Max in Single Turn . | . . . . . . . Machines Sabotaged . | . . . . . . . Garrisons Compromised . | . . . . . . . Overloaded Fab Kills . | . . . . . . . Fab Network Shutdowns . | . . . . . . . Hacking | -11 -10 -10 -10 -9 -8 -7 --------- Run | Scr Mat Min Exi Min Mat Fac Machines Accessed 1 | . . . 1 . . . Terminals . | . . . . . . . Fabricators . | . . . . . . . Repair Stations . | . . . . . . . Recycling Units . | . . . . . . . Scanalyzers . | . . . . . . . Garrison Access . | . . . . . . . Total Hacks 1 | . . . 1 . . . Successful 1 | . . . 1 . . . Failed . | . . . . . . . Catastrophic . | . . . . . . . Database Lockouts . | . . . . . . . Manual 1 | . . . 1 . . . Terminals . | . . . . . . . Fabricators . | . . . . . . . Repair Stations . | . . . . . . . Recycling Units . | . . . . . . . Scanalyzers . | . . . . . . . Garrison Access . | . . . . . . . Terminal Hacks 1 | . . . 1 . . . Record 1 | . . . 1 . . . Fabricator Hacks . | . . . . . . . Repair Station Hacks . | . . . . . . . Recycling Unit Hacks . | . . . . . . . Scanalyzer . | . . . . . . . Garrison Access Hacks . | . . . . . . . Unauthorized Hacks . | . . . . . . . Terminals . | . . . . . . . Fabricators . | . . . . . . . Repair Stations . | . . . . . . . Recycling Units . | . . . . . . . Scanalyzers . | . . . . . . . Garrison Access . | . . . . . . . Data Cores Recovered . | . . . . . . . Used . | . . . . . . . Hacking Detections . | . . . . . . . Full Trace Events . | . . . . . . . Feedback Events . | . . . . . . . Feedback Blocked . | . . . . . . . Robot Schematics Acquired . | . . . . . . . Robots Built . | . . . . . . . Matter . | . . . . . . . Time . | . . . . . . . Total Robot Build Rating . | . . . . . . . Part Schematics Acquired . | . . . . . . . Parts Built . | . . . . . . . Matter . | . . . . . . . Time . | . . . . . . . Total Part Build Rating . | . . . . . . . Parts Repaired . | . . . . . . . Time . | . . . . . . . Parts Recycled . | . . . . . . . Recycled Matter . | . . . . . . . Retrieved Matter . | . . . . . . . Retrieved Components . | . . . . . . . Parts Scanalyzed . | . . . . . . . Part Schematics Acquired . | . . . . . . . Parts Damaged . | . . . . . . . Bothacking | -11 -10 -10 -10 -9 -8 -7 ------------ Run | Scr Mat Min Exi Min Mat Fac Used RIF Installer . | . . . . . . . Robots Hacked . | . . . . . . . Non-combat . | . . . . . . . Combat . | . . . . . . . Robot Hacks Applied . | . . . . . . . Relay Couplers Released . | . . . . . . . Robots Rewired . | . . . . . . . Allies Hacked . | . . . . . . . Hacks Repelled . | . . . . . . . Allies | -11 -10 -10 -10 -9 -8 -7 -------- Run | Scr Mat Min Exi Min Mat Fac Total Allies . | . . . . . . . Largest Group . | . . . . . . . Highest-Rated Group . | . . . . . . . Highest-Rated Ally . | . . . . . . . Total Orders . | . . . . . . . Ally Attacks . | . . . . . . . Total Damage . | . . . . . . . Kills . | . . . . . . . Allies Corrupted . | . . . . . . . Allies Melted . | . . . . . . . Intel | -11 -10 -10 -10 -9 -8 -7 ------- Run | Scr Mat Min Exi Min Mat Fac Robot Analysis Total . | . . . . . . . Derelict Logs Recovered 1 | . . . . 1 . . Drone Launches . | . . . . . . . Drone Recoveries . | . . . . . . . Exploration | -11 -10 -10 -10 -9 -8 -7 ------------- Run | Scr Mat Min Exi Min Mat Fac Turns Passed 3107 | 118 122 182 511 371 964 839 Spaces Moved 2097 | 68 90 79 416 266 626 552 Core 58 | 8 . . . . 23 27 Treads . | . . . . . . . Legs 1619 | 60 90 79 416 265 503 206 Wheels 58 | . . . . . 58 . Hover 362 | . . . . 1 42 319 Flight . | . . . . . . . Fastest Speed 50 | 50 120 120 120 120 66 66 Average Speed 119 | 115 120 120 120 120 112 128 Slowest Speed 500 | 120 120 120 120 120 150 500 Overloaded Moves . | . . . . . . . Propulsion Burnouts . | . . . . . . . Robots Hopped . | . . . . . . . Cave-ins Triggered . | . . . . . . . Time Travels 1 | . . . 1 . . . Exploration Rate (%) 28 | 4 8 15 73 47 44 11 Regions Visited 6 Branch Regions 3 Pre-discovered Areas 2 | . . . . 2 . . Known Exits Taken . | . . . . . . . Unknown Exits Taken 6 | 1 1 1 1 1 1 . Scrap Searched 2 | . . 1 . 1 . . Spaces Dug 4 | . . . . . 4 . Terrain Destroyed 57 | . . . . . 37 20 Melee . | . . . . . . . Projectile . | . . . . . . . AOE 57 | . . . . . 37 20 Terrain Rammed . | . . . . . . . Walls Destroyed . | . . . . . . . Machines Disabled . | . . . . . . . Actions | -11 -10 -10 -10 -9 -8 -7 --------- Run | Scr Mat Min Exi Min Mat Fac Total 2518 | 88 98 130 430 301 825 646 Wait 192 | 1 . 14 . 3 129 45 Move 2091 | 67 89 78 415 265 625 552 Hop . | . . . . . . . Pick Up 29 | 4 2 2 6 2 8 5 Fast Attach 35 | 5 1 . . 8 12 9 Attach 14 | . 1 1 2 1 6 3 Detach 5 | . . . 1 1 2 1 Swap 9 | 1 1 2 1 3 1 . Drop 30 | . 1 . 5 9 5 10 Fire 109 | 10 3 33 . 9 37 17 Melee . | . . . . . . . Ram 4 | . . . . . . 4 Kick . | . . . . . . . Crush . | . . . . . . . Escape Stasis . | . . . . . . . Rewire . | . . . . . . . Trap . | . . . . . . . Miscellaneous . | . . . . . . . Route ------- -11/Scrapyard -10/Materials -10/Mines -10/Exiles (discovered 2 exits: [*Min x2]) -9/Mines -8/Materials -7/Factory History --------- Turn | Location | Event 9 | -11/Scrapyard | Discovered new exit (range 15) 119 | -11/Scrapyard | Entered Materials 134 | -10/Materials | Discovered new exit (range 16) 241 | -10/Materials | Entered Mines 242 | -10/Mines | Met a Derelict bent on vengeance 301 | -10/Mines | Build established: Mutant 417 | -10/Mines | Deemed a non-threat by the Exiles lab entrance 418 | -10/Mines | Discovered new exit (range 5) 423 | -10/Mines | Entered Exiles 445 | -10/Exiles | Discovered new exit (range 14) 482 | -10/Exiles | Met 8R-AWN 503 | -10/Exiles | Met EX-HEX 615 | -10/Exiles | Met EX-DEC 670 | -10/Exiles | Met EX-BIN 692 | -10/Exiles | Aligned with FarCom system 693 | -10/Exiles | Given EX-Vault access code 741 | -10/Exiles | Opened EX-Vault 753 | -10/Exiles | Found Prototype Energy Cannon 772 | -10/Exiles | Found Prototype Device 773 | -10/Exiles | Identified Chronowheel 773 | -10/Exiles | Activated Chronowheel 773 | -10/Exiles | Spacetime reconverged on an earlier point 810 | -10/Exiles | Warned to stay clear of 0b10 Research branches 921 | -10/Exiles | Discovered new exit (range 14) 934 | -10/Exiles | Entered Mines 1004 | -9/Mines | Learned location of Zion (-6) 1014 | -9/Mines | Learned location of Storage (-9) 1225 | -9/Mines | Discovered new exit (range 16) 1305 | -9/Mines | Entered Materials 1305 | -8/Materials | Evolved 4 slots: Propulsion x2, Utility x1, Weapon x1 1328 | -8/Materials | Build established: Skirmisher 1691 | -8/Materials | Lost 9 parts (1p2n1u5w) 2253 | -8/Materials | Discovered new exit (range 15) 2269 | -8/Materials | Entered Factory 2269 | -7/Factory | Evolved 2 slots: Power x1, Weapon x1 2711 | -7/Factory | Build established: Scavenger-Skirmisher 3048 | -7/Factory | Core integrity fell below 50% 3060 | -7/Factory | Core integrity fell below 20% 3108 | -7/Factory | Destroyed by P-60 Hacker with Shock Rifle Last Messages --------------- Overheating: Sml. Storage Unit damaged (-17). Overheating: Energy bleed (-52). Broken Plasma Cannon destroyed. Overheating: Sml. Storage Unit damaged (-7). Imp. Deuterium Engine destroyed. Overheating: Core damaged (-70). Broken Carbon-fiber Leg destroyed. System corrupted by crushing effect (+5). Overheating: Matter decay (-46). System corrupted: Matter fused (-5). Overheating: Matter decay (-26). Power failure, Lgt. Nuclear Core shutdown. Lgt. Nuclear Core destroyed. Broken Aluminum Leg destroyed. System corrupted by crushing effect (+3). Manufacturing Mainframe disabled. System corrupted: Component data lost. Slammed into G-47 Trooper. Lyr. Light Armor Plating destroyed. Slammed into B-48 Gladiator. Map ----- +----------------------------------------------------+ | #####% #??????????????#???????????????????????? | | # ###?#??????????????#???????????????????? | | ! # #???????????????????????????#??????????? | | / #????????????????????##????????????????? | | "" # #????????????????????#????????????"????? | | "" # #???#????????????#?????????????????????? | | "" # % #????###########?#?#??#????????????????? | | "" # % #????# ||! #?#????????? ???????????? | | "" # #?#?##[ |! #????#???#???? ?????????? | | "" # #?#?# |! #????????#????""????????? | | "" # #???## """ #???????????????????????? | | # #???## """ #???????????????????? ??? | | ##### #????# """ ! #???????????? ?????? ??? | | ????# #????# #??????????????g?? ??? | | ????# #????# #???????##?? ???? ????? | | " ??# ##########+############ ####### ####? | | " # ? | | " + | | # """ """ % | | ##### """ """ = | | # """ """ g %= | | # """ """ ###+######## ## ##??? | | # # #?######## ???? | | # """ """ #"" #??#??????? """""??????? | | + """ """ #"" p b#???????????? ? ??????? | | "" # """ """ #"" g@#?????????? ??""???????? | | "" # """ """ #T """" #?????#?????? ?????????? | | "" # #"" """" #??????????????????????? | | "" # """ """ #"" """" #??????????????????????? | | "" # """ """ #"" """ #??????????????????????? | | ""! # """ """ # g g #??????#?? ????????????? | | %==# """ """ ##########???#????#?????????????? | | ##### #????????????#??????????????????? | | ##### #???????????????????????????????? | | #???##???????????#??????????????? | | #######+##########?????????????????????#?????????? | | ?# #??????????????????????????????????? | | ?# #??????????????????????????????????? | | ?# ! #??????????#???????????????????????? | | ?# #?????????????#????????????????????? | | ?# ! """ """ #??????????????????????????????????? | | ?# """ """ #??????????????????????????????????? | | ##% """ """ #?????#????????????????????????????? | | %+ #??????????????????????????????????? | | ## "" "" #??????????????????????????????????? | | ## ""T"" #??????????????????????????????????? | | ## """ ????????????????????????????????????? | | ## ???????????????????????????????????? | | ###############??????????????????????????????????? | | #????????????????????????????????????????????????? | +----------------------------------------------------+ Best States ------------- Heat Dissipation 34 Energy Generation 25 Energy Capacity 350 Matter Stores 450 Matter Capacity 450 Sight Range 16 Robot Scan Range 10 Terrain Scan Range 24 Terrain Scan Density 10 Armor Coverage 375 Weapon Shielding 66 Evasion (%) 51 Item Schematics ----------------- None Robot Schematics ------------------ None Fabricated ------------ Nothing Alien Tech Used ----------------- None Achievements -------------- None Challenges ------------ None Game ------ Seed ArmoredBiomechanicalStick Manual? 0 Play Time 00:39:38 Cumulative 3.7 hours Start 2022.02.02 @ 18:10:29 End 2022.02.02 @ 18:48:58 Sessions 1 Manual Loads 0 Difficulty Rogue Special Mode None Game No. 5 Rogue 5 Adventurer 0 Explorer 0 Win Type - Total 0 Types 0/0/0/0/0/0/0/0/0 Lore% 12 Gallery% 9 Achievement% 6 Wizard Run 0 Options --------- ASCII 1 Keyboard 1 Movement Numpad Keybinds 0 Fullscreen 1 Font 24/Proggy Map View 113x50 Tactical HUD 0 Map Filters NONE Filters NONE Steam 1 RUN: 169ad2fe-4eee-46bf-bfcc-4a92bc91b432